Cogmind - Beta 10.2 @@@ ROGUE MODE // 2021.06.20 @ 17:47:24 Player: Finestep Result: Destroyed by MAIN.C with Omega Cannon Performance ------------- Evolutions (9) 4500 Regions Visited (29) 5800 Robots Destroyed (646) 3230 Value Destroyed (35246) 35246 Prototype IDs (47) 940 Alien Tech Used (0) 0 Bonus (24787) 24787 TOTAL SCORE: 74503 Bonus ------- High Alert Combat Kills 6404 Follower Combat Kills 4772 Entered Garrisons 1400 Used RIF Installer 3500 Scanned by Researcher 500 Destroyed MAIN.C Guards 500 Met MAIN.C 5000 Destroyed MAIN.C Shell 5000 Friendly Fire -2289 Cogmind --------- Core Integrity 0/1600 Matter 300/300 Energy 78/100 System Corruption 42% Temperature Cool (0) Movement Core (50) Location -1/Command Parts ------- > --- POWER (2) -------- (None) > --- PROPULSION (6) --- (None) > --- UTILITY (14) ----- (None) > --- WEAPON (3) ------- (None) > --- INVENTORY (4) ---- Improved Quantum Reactor Thermal Barrier Gamma Bomb Array Advanced Remote Datajack Peak State ------------ > --- POWER ------------ Zero-point Reactor Zero-point Reactor > --- PROPULSION ------- Biometal Heavy Treads Experimental Biometal Heavy Treads Experimental Biometal Heavy Treads > --- UTILITY ---------- Experimental Power Amplifier Experimental Cooling System Experimental Cooling System High-capacity Storage Unit High-capacity Storage Unit Experimental Energy Well Advanced Target Analyzer Advanced Weapon Cycler Heavy Regenerative Plating Heavy Regenerative Plating Thermal Barrier AEGIS Remote Shield > --- WEAPON ----------- Enhanced Nova Cannon Graviton Cannon Graviton Cannon > --- INVENTORY -------- Improved Quantum Reactor Zero-point Reactor Zero-point Reactor Advanced Power Amplifier Experimental Energy Well Experimental Energy Well Experimental Matter Compressor Experimental Matter Compressor Advanced Weapon Cycler Experimental Weapon Shielding Thermal Barrier AEGIS Remote Shield High-powered Tractor Beam Heavy Proton Cannon Disintegrator Helical Railgun Gamma Bomb Array Neutron Missile Launcher Advanced Remote Datajack [Rating: 227] Favorites ----------- Power Heavy Ion Engine Engine Heavy Ion Engine Power Core Micro Nuclear Core Reactor Quantum Reactor Propulsion Light Treads Treads Light Treads Leg Myomer Leg Wheel Armored Huge Wheel Hover Unit Cooled Airjet Flight Unit Flight Unit Utility High-capacity Storage Unit Device Advanced Weapon Cycler Storage High-capacity Storage Unit Processor Enhanced Optical Array Hackware Relay Coupler [Grunt] Protection Hardened Light Armor Plating Weapon Enhanced Autogun Energy Gun Medium Laser Energy Cannon Enhanced Nova Cannon Ballistic Gun Enhanced Autogun Ballistic Cannon Antimatter Cannon Launcher Tesla Bomb Launcher Special Weapon Remote Datajack Slashing Weapon Makeshift Sword Special Melee Weapon Improved Datajack Build | -11 -10 -10 -9 -9 -9 -8 -8 -8 -8 -8 -7 -7 -7 -7 -6 -6 -6 -6 -5 -5 -4 -4 -4 -3 -3 -2 -2 -1 -1 ------- Run | Scr Mat Min Mat Min Exi Min Mat Gar Mat Gar Fac Gar Fac Gar Fac Was Fac Gar Fac Gar Fac Arm Lab Res Gar Res Tes Acc Com Slots Evolved 18 | . . . 2 . . . 2 . . . 2 . . . 2 . . . 2 . 2 . . 2 . 2 . 2 . Power 1 | . . . . . . . . . . . . . . . . . . . . . 1 . . . . . . . . Propulsion 4 | . . . . . . . . . . . 1 . . . . . . . 1 . . . . . . . . 2 . Utility 12 | . . . 1 . . . 2 . . . 1 . . . 2 . . . 1 . 1 . . 2 . 2 . . . Weapon 1 | . . . 1 . . . . . . . . . . . . . . . . . . . . . . . . . . Parts Attached 906 | 7 21 11 43 2 2 8 12 4 29 18 47 65 18 34 11 7 8 11 24 18 52 103 . 18 43 45 101 24 120 Power 66 | 1 1 2 4 . . 1 . 1 1 1 1 9 3 2 2 . . 1 1 2 3 11 . . 2 2 7 1 7 Engine 20 | 1 1 2 4 . . 1 . . 1 . . 4 3 2 1 . . . . . . . . . . . . . . Core 16 | . . . . . . . . 1 . 1 1 5 . . 1 . . 1 1 2 1 1 . . 1 . . . . Reactor 30 | . . . . . . . . . . . . . . . . . . . . . 2 10 . . 1 2 7 1 7 Propulsion 107 | 2 3 4 11 . . 1 4 1 5 2 5 15 6 3 . 1 . 1 2 2 5 11 . 1 1 3 5 3 10 Treads 83 | 2 3 3 10 . . 1 4 1 5 2 4 6 4 2 . 1 . 1 1 2 4 9 . 1 1 3 5 3 5 Leg 5 | . . . . . . . . . . . . . . . . . . . . . . . . . . . . . 5 Wheel 17 | . . 1 . . . . . . . . 1 9 1 1 . . . . 1 . 1 2 . . . . . . . Hover 1 | . . . . . . . . . . . . . 1 . . . . . . . . . . . . . . . . Flight 1 | . . . 1 . . . . . . . . . . . . . . . . . . . . . . . . . . Utility 340 | 2 4 . 10 2 2 1 5 1 6 3 16 21 2 10 5 1 2 7 14 6 22 32 . 10 19 21 44 8 64 Device 155 | . . . . . . . . . 2 2 4 8 . . . . . 1 3 . 8 19 . 8 8 10 28 3 51 Storage 21 | 2 4 . 2 . 1 . 1 . . . . 1 . . . . 1 . . . . . . . . 3 . . 6 Processor 16 | . . . . . . . 2 . . . 1 1 . . 1 . . . 1 . 1 1 . 2 . 1 . 4 1 Hackware 50 | . . . . . . . . . 2 . 3 3 . 3 4 . . 2 6 4 7 3 . . 6 4 2 1 . Protection 98 | . . . 8 2 1 1 2 1 2 1 8 8 2 7 . 1 1 4 4 2 6 9 . . 5 3 14 . 6 Artifact . | . . . . . . . . . . . . . . . . . . . . . . . . . . . . . . Weapon 393 | 2 13 5 18 . . 5 3 1 17 12 25 20 7 19 4 5 6 2 7 8 22 49 . 7 21 19 45 12 39 Energy Gun 17 | 1 3 1 1 . . . . . . 3 4 . . . . . 2 . . . 2 . . . . . . . . Energy Cannon 52 | . . . 2 . . . . . 2 . . . . . . . . . . 3 1 6 . 1 . 3 18 4 12 Ballistic Gun 198 | 1 8 4 13 . . 4 3 1 11 9 14 13 6 12 1 1 1 1 1 3 8 21 . 2 12 12 16 5 15 Ballistic Cannon 14 | . . . 1 . . . . . . . . . . . 1 2 . . 2 . 5 . . . . . . . 3 Launcher 37 | . . . 1 . . 1 . . 1 . 2 1 1 1 . . 2 . . . . 11 . 3 5 1 2 . 5 Special Weapon 60 | . 2 . . . . . . . . . 2 2 . 4 2 1 1 1 2 2 6 11 . 1 4 3 9 3 4 Impact Weapon . | . . . . . . . . . . . . . . . . . . . . . . . . . . . . . . Slashing Weapon 10 | . . . . . . . . . 1 . . 4 . 2 . 1 . . 2 . . . . . . . . . . Piercing Weapon . | . . . . . . . . . . . . . . . . . . . . . . . . . . . . . . Special Melee Weapon 5 | . . . . . . . . . 2 . 3 . . . . . . . . . . . . . . . . . . Unidentified Prototypes 37 | . . . 4 . . . . . . . 2 . 1 . 1 . . . 1 . 2 5 . . . 3 8 . 10 Parts Lost 81 | . 1 2 1 1 . 5 4 2 . . 1 6 3 . . . . . 1 . 3 12 . 2 3 2 5 1 26 Power 4 | . . 1 . . . . . 1 . . . . . . . . . . . . . 1 . . . . . . 1 Propulsion 20 | . . . . . . 1 1 1 . . 1 1 1 . . . . . . . 1 4 . . . . . . 9 Utility 29 | . . . . 1 . 1 1 . . . . 2 . . . . . . . . . 3 . 1 3 2 4 . 11 Weapon 28 | . 1 1 1 . . 3 2 . . . . 3 2 . . . . . 1 . 2 4 . 1 . . 1 1 5 Highest Loss Streak 18 | . 1 1 1 1 . 2 2 1 . . 1 4 2 . . . . . 1 . 1 4 . 2 1 1 3 1 18 Average Slot Usage (%) 92 | . 100 99 99 100 100 99 99 98 99 97 99 93 99 88 89 92 93 88 86 88 89 87 89 89 87 85 81 79 78 Engine 3 | . 14 13 11 11 11 11 9 1 8 . . . 7 7 2 . . . . . . . . . . . . . . Core 2 | . . . . . . . . 5 . 8 6 6 . . 3 6 6 6 5 5 7 . . . 2 1 . . . Reactor 2 | . . . . . . . . . . . . . . . . . . . . . 2 9 10 9 5 6 8 8 7 Treads 12 | . 28 22 21 22 22 21 18 18 18 18 21 7 6 6 6 6 6 6 5 5 7 7 10 9 9 8 8 11 11 Wheel 3 | . . 5 . . . . . . . . . 10 15 10 6 6 6 6 4 5 4 4 . . . . . . . Device 3 | . . . . . . . . . 7 2 5 4 . . . . . . . . 1 6 10 18 5 8 8 8 14 Storage 20 | . 28 28 22 22 22 22 27 27 27 27 23 23 30 23 20 20 23 26 17 17 15 15 15 14 14 13 13 12 12 Processor 8 | . . . . . . . 9 9 . . 4 5 7 7 12 13 13 13 16 17 15 15 15 14 19 19 15 14 9 Hackware 4 | . . . . . . . . . 1 . 4 . . 1 14 16 9 2 10 13 16 5 5 4 10 9 7 8 6 Protection 6 | . . . 10 11 11 10 9 8 9 15 7 10 7 7 1 2 6 6 3 2 2 4 5 4 3 3 5 4 4 Ballistic Gun 17 | . 22 27 27 33 33 32 26 26 25 25 22 18 22 20 17 12 2 3 . 5 8 12 10 10 11 9 9 9 8 Ballistic Cannon 1 | . . . . . . . . . . . . . . . . 3 13 13 10 5 3 . . . . . . . 1 Naked Turns 18 | . . . . . . . . . . . . . . . . . . . . . . . . . . . . . 18 Heaviest Build 218 | 15 53 59 87 88 88 88 118 118 122 124 123 147 138 138 138 130 139 150 150 130 164 202 181 196 188 205 218 191 207 Greatest Support 245 | 40 40 40 40 40 40 40 40 40 40 48 84 68 36 40 28 28 30 28 70 70 135 155 155 155 145 160 160 230 245 Greatest Overweight (x) 11 | . 1 5 3 2 2 2 2 2 3 3 4 11 5 5 4 4 4 7 5 4 5 6 1 1 1 1 2 1 2 Average Overweight (x) 2 | . . 2 1 2 2 2 2 2 2 2 1 4 4 4 4 4 4 4 3 3 3 2 1 1 1 1 . . . Largest Inventory Capacity 34 | 8 18 18 20 20 20 20 28 28 28 28 28 34 34 34 28 28 28 28 28 28 28 28 28 28 28 28 28 28 28 Average Capacity 26 | 5 16 18 19 20 20 20 28 28 28 28 28 28 34 28 28 28 28 28 28 28 28 28 28 28 28 28 28 28 26 Most Carried 34 | 6 18 18 20 20 20 20 28 28 28 28 28 34 34 33 28 28 28 28 28 28 28 28 26 28 28 28 28 28 28 Average Carried 25 | 2 15 17 18 19 19 18 23 27 27 27 27 27 33 27 27 27 27 27 27 27 27 26 26 24 27 27 27 27 24 Final Capacity 34 | 8 18 18 20 20 20 20 28 28 28 28 28 34 34 28 28 28 28 28 28 28 28 28 28 28 28 28 28 28 4 Final Carried 34 | 6 18 18 20 19 20 20 28 28 28 28 28 34 34 28 28 28 28 28 28 28 28 26 26 28 28 28 27 28 4 Class Distribution -------------------- 21% | Botlord-Mutant 19% | Hauler-Tank 9% | Botlord-Gunner 8% | Hauler-Gunner 8% | Hauler-Mutant 8% | Bothacker-Mutant 6% | Bothacker-Tank 6% | Bothacker-Gunner 6% | Mutant 3% | Scavenger-Tank Dominant Class ---------------- Mutant | -10/Materials Mutant | -10/Mines Scavenger-Tank | -9/Materials Hauler-Tank | -9/Mines Hauler-Tank | -9/Exiles Hauler-Tank | -8/Mines Hauler-Gunner | -8/Materials Hauler-Gunner | -8/Garrison Hauler-Tank | -8/Materials Hauler-Tank | -8/Garrison Bothacker-Tank | -7/Factory Hauler-Tank | -7/Garrison Bothacker-Gunner | -7/Factory Bothacker-Mutant | -7/Garrison Botlord-Gunner | -6/Factory Botlord-Gunner | -6/Waste Botlord-Mutant | -6/Factory Botlord-Mutant | -6/Garrison Botlord-Mutant | -5/Factory Botlord-Mutant | -5/Garrison Botlord-Mutant | -4/Factory Hauler-Mutant | -4/Armory Hauler-Mutant | -4/Lab Hauler-Mutant | -3/Research Botlord-Gunner | -3/Garrison Botlord-Mutant | -2/Research Hauler-Gunner | -2/Testing Hauler-Gunner | -1/Access Botlord-Gunner | -1/Command Resources | -11 -10 -10 -9 -9 -9 -8 -8 -8 -8 -8 -7 -7 -7 -7 -6 -6 -6 -6 -5 -5 -4 -4 -4 -3 -3 -2 -2 -1 -1 ----------- Run | Scr Mat Min Mat Min Exi Min Mat Gar Mat Gar Fac Gar Fac Gar Fac Was Fac Gar Fac Gar Fac Arm Lab Res Gar Res Tes Acc Com Matter Collected 30372 | 285 427 148 1090 225 10 343 615 203 714 579 1437 1536 807 1320 290 75 602 526 728 1008 982 3398 . 392 1139 1457 3117 778 6141 Remotely 4779 | . . . . . . . . . . . . . . . . . . . . . 495 425 . 170 107 . 461 275 2846 Salvage Created 36470 | 81 917 157 1986 267 . 458 1506 295 1229 631 1725 1933 1005 837 190 59 529 189 643 340 485 4107 . 283 1436 2506 4648 1689 6339 Parts 1773 | 10 53 20 132 20 . 28 75 16 79 38 74 76 55 38 7 1 28 7 26 10 26 160 . 17 67 119 243 68 280 Haulers Intercepted 20 | . 2 . 6 . . . 3 . 2 . 1 . 1 . 1 . 3 . . . . . . . . 1 . . . Recyclers Shooed 33 | . 2 1 1 2 . . 1 . 2 . 4 . 2 . . . 5 . 1 . 3 . . . . 6 2 1 . Parts Field Recycled . | . . . . . . . . . . . . . . . . . . . . . . . . . . . . . . Retrieved Matter . | . . . . . . . . . . . . . . . . . . . . . . . . . . . . . . Parts Self-Destructed . | . . . . . . . . . . . . . . . . . . . . . . . . . . . . . . Prevented . | . . . . . . . . . . . . . . . . . . . . . . . . . . . . . . Kills | -11 -10 -10 -9 -9 -9 -8 -8 -8 -8 -8 -7 -7 -7 -7 -6 -6 -6 -6 -5 -5 -4 -4 -4 -3 -3 -2 -2 -1 -1 ------- Run | Scr Mat Min Mat Min Exi Min Mat Gar Mat Gar Fac Gar Fac Gar Fac Was Fac Gar Fac Gar Fac Arm Lab Res Gar Res Tes Acc Com Combat Hostiles Destroyed 481 | . 19 5 29 8 . 14 19 8 17 12 20 25 14 15 2 . 2 5 9 6 7 64 . 5 20 20 52 14 70 Melee 7 | . . . . . . . 1 . . . . . . 1 . . . . . . . 5 . . . . . . . Guns 336 | . 19 5 24 8 . 11 18 8 13 12 19 23 14 10 2 . . 1 . 1 1 41 . 2 10 14 32 12 36 Cannons 59 | . . . 3 . . . . . 2 . . . . . . . 2 4 9 5 6 1 . . . 3 14 1 9 AOE 33 | . . . 2 . . 3 . . 2 . . 2 . 4 . . . . . . . 5 . 3 7 . 3 . 2 Classes Destroyed 23 | 2 6 1 2 2 . . . . 1 1 1 2 . . . . . . 1 2 . 1 . . . . 1 . . Worker 36 | . 1 1 3 1 . . 2 . . . 5 . 1 . . . 4 . 1 . . . . 1 . 1 4 3 8 Builder 21 | . . . 4 1 . . . . 4 . 1 . . . . . 3 . 1 . 1 . . . . . 5 1 . Tunneler 4 | 2 1 . . . . . . . 1 . . . . . . . . . . . . . . . . . . . . Hauler 20 | . 2 . 6 . . . 3 . 2 . 1 . 1 . 1 . 3 . . . . . . . . 1 . . . Recycler 43 | 1 1 . 4 . . . 5 . 4 . 6 . 3 . . . 2 . 1 . 1 . . 1 . 7 1 4 2 Carrier 1 | . . . . . . . . . . . . . . . . . . . . 1 . . . . . . . . . Mechanic 1 | . . . . . . . . . . . . . . . . . . . . . . . . . . . . . 1 Operator 9 | . 3 . 2 . . . . . 1 . . . 1 . . . . . 1 . 1 . . . . . . . . Watcher 23 | . 2 . 5 . . . 3 . 1 . . . 2 . . . . . . . 1 2 . . . 1 2 1 3 Swarmer 68 | . 6 3 7 3 . 7 3 3 5 . . 4 2 4 1 . 2 1 . . . 4 . 5 5 . . . 3 Saboteur 7 | . . . . . . . . . . . . . . . . . . . . . . 6 . . . . . . 1 Grunt 181 | . 13 . 13 2 . 7 10 5 7 6 13 11 5 7 . . . 3 5 3 . 14 . . 8 . 19 8 22 Brawler 18 | . . . 1 . . . 2 . . 1 . . . . . . . . . 2 . 4 . . 1 . 2 . 5 Duelist 18 | . . . . 1 . . . . . . . 1 . 2 . . . . . . . 11 . . . . . . 3 Protector 3 | . . . . . . . . . . . . 1 . . . . . . . . . 1 . . . . . . 1 Researcher 3 | . . . . . . . . . . . . . . . . . . . . . . . . . . . 3 . . Sentry 52 | . . 2 8 . . . 4 . 3 2 3 5 4 1 1 . . 1 3 . . 8 . . 2 2 1 . 2 Demolisher 4 | . . . . . . . . . . 1 1 1 . . . . . . . . . 1 . . . . . . . Specialist 8 | . . . . . . . . . . . . 2 . . . . . . . . . 6 . . . . . . . Hunter 35 | . . . . . . . . . 2 2 1 . . 1 . . . . . . 2 1 . . 2 4 7 2 11 Programmer 80 | . . . . . . . . . . . 3 . 3 . . . 1 . 1 . 5 9 . . 1 14 22 4 17 Behemoth 2 | . . . . . . . . . . . . . . . . . . . . 1 . . . . 1 . . . . M Guard 2 | . . . . . . . . . . . . . . . . . . . . . . . . . . . . . 2 Combat Programmer 2 | . . . . . . . . . . . . . . . . . . . . . . . . . . . . . 2 Investigator 1 | . . . . . . . . . . . . . . . . . . . . . . . . . . . 1 . . Protovariant L 1 | . . . . . . . . . . . . . . . . . . . . . . . . . . . 1 . . Assembled 2 | . . . . 2 . . . . . . . . . . . . . . . . . . . . . . . . . Surgeon 1 | . . . . . . . . . . . . . . . . . . . 1 . . . . . . . . . . Martyr 1 | . . . . . . . . . . . . . . . . 1 . . . . . . . . . . . . . Best Kill Streak 11 | 3 4 3 6 3 . 4 5 3 6 2 4 5 4 5 1 . 5 2 2 3 2 8 . 3 6 7 9 11 10 Combat Bots Only 9 | . 3 3 5 3 . 4 4 3 6 2 3 5 3 5 1 . 1 2 2 3 2 8 . 3 6 5 8 3 9 Max Kills in Single Turn 4 | 1 1 2 2 2 . 2 1 2 3 1 2 2 2 2 1 1 3 1 1 1 2 4 . 3 3 2 2 3 3 Gunslinging 1 | . . 1 . 1 . . . 1 . . 1 1 . . . . . . . . . 1 . . . 1 1 . . Exploded 4 | . . . 1 . . 2 . . 1 . . 1 . 2 . . . . . . . 4 . 3 3 . 1 . 1 Melee 1 | . . . . . . . 1 . . . . . . 1 . . . . . . . 1 . . . . . . . Uniques/NPCs Destroyed 1 | . . . . . . . . . . . . . . . . . . . . . . . . . . . . . 1 MAIN.C Shell (-1/Command) Combat | -11 -10 -10 -9 -9 -9 -8 -8 -8 -8 -8 -7 -7 -7 -7 -6 -6 -6 -6 -5 -5 -4 -4 -4 -3 -3 -2 -2 -1 -1 -------- Run | Scr Mat Min Mat Min Exi Min Mat Gar Mat Gar Fac Gar Fac Gar Fac Was Fac Gar Fac Gar Fac Arm Lab Res Gar Res Tes Acc Com Damage Taken 47438 | . 646 344 1037 668 . 635 1085 303 689 495 1091 1771 1119 1307 94 . 126 846 535 511 1574 5968 . 238 1670 1485 6732 1644 14825 Core 4176 | . 86 76 147 90 . 59 128 . 76 68 89 210 85 186 26 . . 38 53 58 125 461 . 11 44 30 350 79 1601 Absorbed by Shields 11330 | . . . . . . . . . 189 6 210 594 . 12 . . . . . . . 1976 . 114 69 457 721 . 6982 Reduced by Siege Mode 2046 | . . . . . . . . . . . . . . . . . . . . 22 32 216 . 18 . 28 384 59 1287 Core Remaining (%) 62 | 100 . 35 . . . 26 . . . 50 . . . 18 . . . 92 . 88 . . 49 . 95 . 73 . . Volleys Fired 1990 | 5 110 22 119 21 . 32 75 17 49 43 97 96 57 69 18 1 40 35 53 53 60 205 . 12 79 93 196 54 279 Largest 3 | 2 2 2 3 3 . 3 3 3 3 3 3 3 3 3 3 1 3 3 3 2 3 3 . 3 3 3 3 3 3 Hottest 260 | 70 100 43 114 69 . 69 69 69 78 110 110 81 81 84 84 30 140 105 142 114 155 188 . 120 95 186 239 196 260 Shots Fired 4312 | 10 200 43 345 62 . 86 225 45 130 102 253 243 169 118 40 1 61 73 82 73 83 414 . 19 132 193 413 136 561 Gun 3349 | 10 181 43 308 62 . 84 225 45 122 102 241 231 169 89 34 . 17 19 1 2 17 346 . 12 92 150 298 110 339 Cannon 602 | . . . 34 . . . . . 6 . . . . . . . 31 47 56 52 38 10 . 1 . 29 93 21 184 Launcher 102 | . . . 3 . . 2 . . 2 . 3 2 . 3 . . 5 . . . . 20 . 6 25 3 4 . 24 Special 259 | . 19 . . . . . . . . . 9 10 . 26 6 1 8 7 25 19 28 38 . . 15 11 18 5 14 Kinetic 3630 | 5 144 43 315 62 . 84 225 45 122 93 235 231 169 89 34 . 37 66 57 47 54 346 . 12 92 150 298 110 465 Thermal 224 | 5 56 . 27 . . . . . . . . . . . . . . . . 7 1 5 . 1 . 29 55 10 28 Explosive 28 | . . . 3 . . 2 . . 2 . 3 2 . 3 . . 5 . . . . 1 . 2 1 . 4 . . Electromagnetic 190 | . . . . . . . . . 6 9 6 . . . . . 11 . . . . 24 . 4 24 3 38 11 54 Robot Hit Streak 65 | 5 21 5 20 10 . 23 32 25 17 8 14 23 11 12 8 1 11 19 11 37 14 22 . 26 26 33 28 20 65 Robot Miss Streak 11 | 2 4 3 3 3 . 2 4 1 3 3 5 11 8 6 3 . 7 4 6 3 3 7 . 1 3 3 3 2 3 Penetration Max 2 | . . . . . . . . . 1 . 1 . . 1 1 . . . 1 . 2 2 . 1 1 1 2 2 2 Secondary Targets 59 | . 3 2 1 3 . . 4 4 2 2 2 5 2 2 . . . . . . . 8 . 2 2 4 5 2 4 Max Gunslinging Chain 1 | . 1 1 1 1 . . 1 1 1 1 1 1 1 1 . . . . . . . 1 . 1 1 1 1 1 1 Shots Hit Robots 3068 | 7 126 27 225 39 . 61 163 34 93 64 165 194 135 94 25 8 36 41 53 47 63 303 . 11 70 149 286 112 437 Core Hits 1459 | 4 54 12 81 14 . 25 64 15 46 23 56 98 98 53 8 1 22 11 23 16 31 145 . 10 45 60 119 49 276 Critical Hits 202 | . 1 1 6 . . . 1 . 2 3 3 1 1 2 2 . . 1 11 7 14 26 . 2 8 11 40 11 48 Critical Kills 75 | . 1 1 2 . . . . . . 2 3 1 . . 1 . . 1 7 4 5 6 . 2 5 5 12 3 14 Critical Parts Destroyed 109 | . . . 3 . . . 1 . 2 1 . . 1 2 1 . . . 4 2 9 20 . . 2 6 27 5 23 Melee Attacks 74 | . . . . . . . . . 10 . 7 42 . 6 . 7 . . 2 . . . . . . . . . . Impact . | . . . . . . . . . . . . . . . . . . . . . . . . . . . . . . Slashing 60 | . . . . . . . . . 3 . . 42 . 6 . 7 . . 2 . . . . . . . . . . Piercing . | . . . . . . . . . . . . . . . . . . . . . . . . . . . . . . Sneak Attacks 21 | . . . . . . . . . 6 . 5 . . 1 . 7 . . 2 . . . . . . . . . . Combat Hostiles 4 | . . . . . . . . . . . 3 . . 1 . . . . . . . . . . . . . . . Follow-up Attacks . | . . . . . . . . . . . . . . . . . . . . . . . . . . . . . . Damage Inflicted 85704 | 106 1219 224 2845 568 . 1082 2062 458 1900 1214 2865 4876 2069 1962 481 732 1515 1218 1684 968 1131 10605 . 666 3027 4721 11784 4114 19608 Guns 53103 | 106 1207 224 2217 536 . 913 2050 458 1489 1150 2752 2331 1895 935 481 . 275 129 40 8 295 7657 . 295 1217 3482 8290 3368 9303 Cannons 16545 | . . . 344 . . . . . 172 . . . . . . . 789 1089 1406 919 836 202 . 41 . 875 2514 526 6832 Explosions 12116 | . . . 284 . . 169 . . 239 64 113 226 174 513 . . 451 . . 41 . 2746 . 330 1806 364 974 220 3402 Melee 3768 | . . . . . . . . . . . . 2312 . 514 . 732 . . 210 . . . . . . . . . . Ramming 172 | . 12 . . 32 . . 12 . . . . 7 . . . . . . 28 . . . . . 4 . 6 . 71 Kinetic 63005 | 67 961 224 2281 536 . 913 2050 458 1489 996 2618 2331 1895 935 481 . 876 1218 1446 927 1131 7657 . 295 1217 3482 8290 3368 14863 Thermal 4606 | 39 246 . 280 . . . . . . 64 39 . 174 . . . . . . . . 107 . 41 116 875 1552 245 828 Explosive 4653 | . . . 284 . . 169 . . 239 . 74 226 . 513 . . 451 . . 41 . 726 . 330 601 . 779 220 . Electromagnetic 9500 | . . . . . . . . . 172 154 134 . . . . . 188 . . . . 2115 . . 1089 364 1157 281 3846 Impact . | . . . . . . . . . . . . . . . . . . . . . . . . . . . . . . Slashing 3768 | . . . . . . . . . . . . 2312 . 514 . 732 . . 210 . . . . . . . . . . Piercing . | . . . . . . . . . . . . . . . . . . . . . . . . . . . . . . Highest Corruption 42 | . 2 2 2 2 2 2 . . 6 6 6 6 6 6 . . 2 2 3 3 5 26 26 . 3 10 28 5 42 Average Corruption 6 | . 2 2 2 2 2 2 . . 5 6 2 3 2 6 . . 1 2 2 3 4 16 26 . 2 9 16 4 17 Corruption Purged 6 | . . . . . . . . . . . . 6 . . . . . . . . . . . . . . . . . Effects 1145 | . 18 12 31 10 3 14 . . 25 37 47 23 7 76 . . 10 9 7 46 9 183 1 . 29 72 225 12 239 Message Errors 198 | . 3 5 9 4 1 1 . . 7 11 8 7 2 20 . . 6 1 1 10 1 16 . . 7 14 32 3 29 Matter Fused 171 | . . . . . . . . . 3 7 11 5 1 19 . . . . 1 13 2 25 . . 8 13 31 1 31 Heat Flow Errors 88 | . 5 4 5 3 1 5 . . 1 2 2 3 2 8 . . . 2 1 5 1 10 . . 2 4 16 1 5 Energy Discharges 99 | . 1 2 4 2 1 3 . . 1 5 8 3 . 7 . . 1 2 1 8 2 14 . . 2 2 18 4 8 Parts Rejected 13 | . . . . . . . . . 1 . . . . . . . . . . . 1 4 . . . . 3 . 4 Data Loss (minor) 101 | . 5 . 5 . . 1 . . 3 5 7 4 . 4 . . 1 4 3 7 1 14 . . 7 6 17 1 6 Data Loss (major) 21 | . . . . . . . . . 1 2 . . . 6 . . . . . . . 4 . . . 2 4 . 2 Misfires 15 | . . . . . . . . . 2 . 2 1 1 . . . . . . . . 4 . . . 1 1 . 3 Alerts 6 | . . . . . . . . . . . . . . . . . . . . . . 1 . . . 2 2 . 1 Misdirections 45 | . . . . . . . . . . . . . . . . . . . . . . 10 1 . . 6 21 . 7 Targeting Errors 301 | . 4 1 7 . . 2 . . 5 4 6 . 1 8 . . 2 . . 3 1 65 . . 2 19 59 1 111 Weapon Failures 87 | . . . 1 1 . 2 . . 1 1 3 . . 4 . . . . . . . 16 . . 1 3 21 1 32 Overload Shots . | . . . . . . . . . . . . . . . . . . . . . . . . . . . . . . Overflow Damage 1117 | . . . 5 . . . . . 21 . . 254 72 9 . 199 3 16 58 15 19 43 . . 133 13 91 . 166 Projectiles 298 | . . . . . . . . . . . . . . . . . 3 16 16 15 19 7 . . . 13 74 . 135 Explosions 293 | . . . 5 . . . . . 21 . . . 72 9 . . . . . . . 36 . . 133 . 17 . . Melee 526 | . . . . . . . . . . . . 254 . . . 199 . . 42 . . . . . . . . . 31 Knockbacks 42 | . . . . 1 . . . . . . . . . . . . 3 7 5 3 4 . . . . . 1 . 18 Impact 2 | . . . . 1 . . . . . . . . . . . . . . . . . . . . . . 1 . . Kinetic 40 | . . . . . . . . . . . . . . . . . 3 7 5 3 4 . . . . . . . 18 Secondary . | . . . . . . . . . . . . . . . . . . . . . . . . . . . . . . Self-Inflicted Damage 519 | . . . . . . . . . . . . . 79 . . . . . . . . 86 . . 103 . 41 . 210 Shots 27 | . . . . . . . . . . . . . 1 . . . . . . . . 6 . . 2 . 1 . 17 Rammed 11 | . 2 . . 2 . . 1 . . . . 1 . . . . . . 2 . . . . . 1 . 1 . 1 Targets Rammed 14 | . 3 1 . 2 . . 2 . . . . 1 . . . . . . 2 . . . . . 1 . 1 . 1 Kicked . | . . . . . . . . . . . . . . . . . . . . . . . . . . . . . . Crushed 3 | . 1 1 . . . . 1 . . . . . . . . . . . . . . . . . . . . . . Highest Temperature 463 | 45 280 250 329 178 259 297 124 108 324 329 281 301 259 394 24 1 96 299 330 210 300 463 . 22 235 189 391 27 334 Average Temperature 79 | 23 49 72 69 36 133 79 32 45 60 98 62 91 55 112 6 1 22 95 68 46 64 137 . 12 64 43 69 13 82 Received Heat Transfer 5636 | . 249 99 393 38 . 306 513 153 225 153 306 389 222 282 . . 27 294 135 63 57 449 . . 114 59 522 126 462 Effects 35 | . . . 1 . . . . . 2 . 3 1 . 2 . . . . 2 . 1 15 . . 2 . 2 . 4 Shutdowns 7 | . . . . . . . . . . . . . . 1 . . . . . . . 5 . . . . 1 . . Energy Bleed 9 | . . . 1 . . . . . . . . 1 . 1 . . . . 1 . . 3 . . . . 1 . 1 Interference 16 | . . . . . . . . . 2 . 3 . . . . . . . . . 1 6 . . 2 . . . 2 Matter Decay 1 | . . . . . . . . . . . . . . . . . . . 1 . . . . . . . . . . Damage (minor) 2 | . . . . . . . . . . . . . . . . . . . . . . 1 . . . . . . 1 Siege Activations 31 | . . . . . . . . . . . . . . . . . . . . 2 1 4 . 1 . 2 7 4 10 Total Turns 1200 | . . . . . . . . . . . . . . . . . . . . 92 31 146 . 18 . 39 241 76 557 Longest Duration 133 | . . . . . . . . . . . . . . . . . . . . 77 31 51 . 18 . 23 90 42 133 Robots Corrupted 48 | . . . . . . . . . . . 1 . . . . . 1 . . . . 12 . . 3 3 4 1 23 Combat Hostiles 47 | . . . . . . . . . . . 1 . . . . . . . . . . 12 . . 3 3 4 1 23 Parts Fried 86 | . . . . . . . . . . 1 . . . . . . 2 . . . . 16 . . 7 2 9 3 46 Impact Corruptions 1 | . . . . . . . . . . . . . . . . . . . . . . . . . . . . . 1 Robots Melted . | . . . . . . . . . . . . . . . . . . . . . . . . . . . . . . Combat Hostiles . | . . . . . . . . . . . . . . . . . . . . . . . . . . . . . . Parts Melted 15 | . 2 . 2 . . . . . . . 1 . . . . . . . 4 . . . . . . 2 1 . 3 Heat Transferred 4273 | 111 692 . 481 . . . . . . 50 50 . 200 . . . . . . . . 74 . 37 100 740 1067 185 486 Parts Sabotaged 22 | . . . . . . . . . . . . 10 . . . . . . . . . 12 . . . . . . . Parts Stolen . | . . . . . . . . . . . . . . . . . . . . . . . . . . . . . . Parts Stripped . | . . . . . . . . . . . . . . . . . . . . . . . . . . . . . . Power Chain Reactions 9 | . . . . . . . . . . 1 1 . . . . . . . . . . 1 . . 1 . 1 . 4 Missiles Intercepted 14 | . . . . . . . . . . . . . . . . . . . . . . . . . . . . . 14 Alert | -11 -10 -10 -9 -9 -9 -8 -8 -8 -8 -8 -7 -7 -7 -7 -6 -6 -6 -6 -5 -5 -4 -4 -4 -3 -3 -2 -2 -1 -1 ------- Run | Scr Mat Min Mat Min Exi Min Mat Gar Mat Gar Fac Gar Fac Gar Fac Was Fac Gar Fac Gar Fac Arm Lab Res Gar Res Tes Acc Com Peak Influence 1488 | 15 200 77 388 196 . 135 184 403 568 785 547 876 511 744 661 176 389 1034 576 711 373 1488 . 370 520 303 1144 1148 977 Initial 720 | . 9 17 1 151 . . 7 113 196 315 411 254 459 105 390 176 . 272 542 207 373 149 . . 127 265 87 664 720 Average 382 | 5 67 22 194 60 . 44 82 293 284 592 310 598 205 413 498 87 173 762 270 474 242 804 . 107 364 141 495 920 797 Maximum Alert Level 4 | . 1 . 1 . . . . 2 2 3 2 3 2 3 2 . 1 3 2 3 1 4 . 1 2 1 4 4 3 Low Security (%) 34 | 100 97 100 49 100 . 100 100 2 8 . 11 . 64 30 . 100 59 . 21 . 30 5 . 82 9 77 28 . . Level 1 26 | . 2 . 50 . . . . 78 80 16 72 34 8 18 24 . 40 6 65 18 69 12 . 17 36 22 17 . . Level 2 22 | . . . . . . . . 18 11 58 16 16 26 43 75 . . 45 13 78 . 33 . . 53 . 24 17 18 Level 3 15 | . . . . . . . . . . 24 . 48 . 7 . . . 48 . 2 . 16 . . . . 20 66 81 Level 4 2 | . . . . . . . . . . . . . . . . . . . . . . 32 . . . . 8 15 . Level 5 . | . . . . . . . . . . . . . . . . . . . . . . . . . . . . . . High Security . | . . . . . . . . . . . . . . . . . . . . . . . . . . . . . . Max Security . | . . . . . . . . . . . . . . . . . . . . . . . . . . . . . . Squads Dispatched 102 | . 4 . 2 . . 1 1 . 6 . 13 . 8 . 1 . 2 . 6 . 4 11 . 1 . 6 20 4 12 Investigation 16 | . 2 . 1 . . . . . 1 . 3 . 1 . . . . . 3 . . 1 . 1 . . 1 2 . Extermination 34 | . . . . . . . . . . . 3 . 3 . . . 2 . 1 . 3 4 . . . 4 8 1 5 Reinforcement 26 | . 2 . 1 . . 1 . . 3 . 2 . 2 . 1 . . . 2 . 1 1 . . . 2 7 . 1 Assault 16 | . . . . . . . . . 1 . . . . . . . . . . . . 5 . . . . 3 1 6 Garrison 10 | . . . . . . . 1 . 1 . 5 . 2 . . . . . . . . . . . . . 1 . . Intercept . | . . . . . . . . . . . . . . . . . . . . . . . . . . . . . . Construction Impeded 5 | . . . . . . 1 . . . . . . . . . . . . . . . . . . . . 4 . . Haulers Reinforced 5 | . . . . . . . . . . . 1 . 1 . 1 . . . . . . . . . . 2 . . . Alert ID Control Effect 11 | . . . . . . . . . . . . . . . . . . . . . . . . . . 5 2 . 4 Stealth | -11 -10 -10 -9 -9 -9 -8 -8 -8 -8 -8 -7 -7 -7 -7 -6 -6 -6 -6 -5 -5 -4 -4 -4 -3 -3 -2 -2 -1 -1 --------- Run | Scr Mat Min Mat Min Exi Min Mat Gar Mat Gar Fac Gar Fac Gar Fac Was Fac Gar Fac Gar Fac Arm Lab Res Gar Res Tes Acc Com Distress Signals 35 | . . . 5 1 . . 3 . 1 . . . 1 . 1 . 1 . 2 . 6 3 . . . 2 2 5 2 Communications Jammed 55 | . . . . . . . . . . . . . . . . . . . . . . 38 . . . 7 4 1 5 Distress Signals 55 | . . . . . . . . . . . . . . . . . . . . . . 38 . . . 7 4 1 5 Times Spotted 899 | . 32 5 43 14 . 18 25 7 23 20 30 44 20 27 15 1 10 35 24 31 44 127 . 5 30 37 91 32 109 Peak Tracking Total 15 | . 4 3 4 3 . 5 6 3 7 3 4 7 4 8 4 . 3 15 6 10 7 11 . 5 6 5 8 8 12 Tactical Retreats 59 | . 1 . 1 1 . 3 1 . . 7 1 1 . 1 . . . 5 . 6 . 9 . . 3 . 11 3 5 Traps | -11 -10 -10 -9 -9 -9 -8 -8 -8 -8 -8 -7 -7 -7 -7 -6 -6 -6 -6 -5 -5 -4 -4 -4 -3 -3 -2 -2 -1 -1 ------- Run | Scr Mat Min Mat Min Exi Min Mat Gar Mat Gar Fac Gar Fac Gar Fac Was Fac Gar Fac Gar Fac Arm Lab Res Gar Res Tes Acc Com Traps Triggered 84 | . 2 . 2 . . . . 5 4 9 4 8 3 9 1 . 3 8 . 9 . . . 2 15 . . . . Indirectly 2 | . . . . . . . . . . . . . . . . . . . . . . . . 2 . . . . . Trap Hack Attempts . | . . . . . . . . . . . . . . . . . . . . . . . . . . . . . . Triggered . | . . . . . . . . . . . . . . . . . . . . . . . . . . . . . . Disarmed . | . . . . . . . . . . . . . . . . . . . . . . . . . . . . . . Reprogrammed . | . . . . . . . . . . . . . . . . . . . . . . . . . . . . . . Reused . | . . . . . . . . . . . . . . . . . . . . . . . . . . . . . . Traps Extracted . | . . . . . . . . . . . . . . . . . . . . . . . . . . . . . . Installed . | . . . . . . . . . . . . . . . . . . . . . . . . . . . . . . Triggered . | . . . . . . . . . . . . . . . . . . . . . . . . . . . . . . Machines | -11 -10 -10 -9 -9 -9 -8 -8 -8 -8 -8 -7 -7 -7 -7 -6 -6 -6 -6 -5 -5 -4 -4 -4 -3 -3 -2 -2 -1 -1 ---------- Run | Scr Mat Min Mat Min Exi Min Mat Gar Mat Gar Fac Gar Fac Gar Fac Was Fac Gar Fac Gar Fac Arm Lab Res Gar Res Tes Acc Com Machines Disabled 85 | . . . 3 1 . . . 1 3 3 3 5 2 4 . . . 6 2 8 3 13 . 1 5 1 13 5 3 Max in Single Turn 2 | . . . 1 1 . . . 1 1 1 2 1 2 1 . . . 1 1 2 1 1 . 1 1 . 2 1 1 Garrison Access 2 | . . . . . . . . . . . . . . . . . . . . . . . . . . 1 1 . . Garrison Relay 24 | . . . . . . . . 1 . 3 . 5 . 4 . . . 4 . 4 . . . . 3 . . . . Phase Generator 2 | . . . . . . . . . . . . . . . . . . 1 . 1 . . . . . . . . . Machines Sabotaged . | . . . . . . . . . . . . . . . . . . . . . . . . . . . . . . Garrisons Compromised . | . . . . . . . . . . . . . . . . . . . . . . . . . . . . . . Overloaded Fab Kills . | . . . . . . . . . . . . . . . . . . . . . . . . . . . . . . Fab Network Shutdowns . | . . . . . . . . . . . . . . . . . . . . . . . . . . . . . . Hacking | -11 -10 -10 -9 -9 -9 -8 -8 -8 -8 -8 -7 -7 -7 -7 -6 -6 -6 -6 -5 -5 -4 -4 -4 -3 -3 -2 -2 -1 -1 --------- Run | Scr Mat Min Mat Min Exi Min Mat Gar Mat Gar Fac Gar Fac Gar Fac Was Fac Gar Fac Gar Fac Arm Lab Res Gar Res Tes Acc Com Machines Accessed 84 | . 7 . 12 . 1 1 4 . 4 . 5 . 5 . 1 . 2 . 6 . 5 7 . 3 . 2 11 4 4 Terminals 54 | . 5 . 11 . . 1 3 . 3 . 2 . 3 . 1 . . . 2 . 3 4 . 1 . 1 6 4 4 Fabricators 11 | . . . . . . . . . . . 1 . 1 . . . 1 . 2 . 1 3 . . . . 2 . . Repair Stations 4 | . . . . . . . . . . . . . . . . . . . 1 . . . . 1 . . 2 . . Recycling Units 3 | . 2 . 1 . . . . . . . . . . . . . . . . . . . . . . . . . . Scanalyzers 2 | . . . . . . . . . . . 1 . . . . . . . . . 1 . . . . . . . . Garrison Access 9 | . . . . . . . 1 . 1 . 1 . 1 . . . 1 . 1 . . . . 1 . 1 1 . . Total Hacks 242 | . 23 . 47 . 4 2 18 . 13 . 10 . 13 . 4 . 6 . 21 . 15 16 . 7 . 5 21 11 6 Successful 120 | . 12 . 27 . 4 1 11 . 6 . 2 . 7 . 1 . 5 . 8 . 9 9 . 3 . 2 8 3 2 Failed 121 | . 10 . 20 . . 1 7 . 7 . 8 . 6 . 3 . 1 . 13 . 6 7 . 4 . 3 13 8 4 Catastrophic 19 | . . . 1 . . . . . . . 3 . 2 . 1 . 1 . 2 . 2 2 . 1 . . 3 1 . Database Lockouts 1 | . 1 . . . . . . . . . . . . . . . . . . . . . . . . . . . . Manual 118 | . 20 . 32 . . 2 12 . 7 . 2 . 2 . 4 . 2 . 7 . 1 4 . 5 . 2 11 . 5 Terminals 165 | . 17 . 44 . . 2 15 . 11 . 5 . 7 . 4 . . . 9 . 7 9 . 3 . 2 13 11 6 Fabricators 25 | . . . . . . . . . . . 2 . 4 . . . 2 . 5 . 2 7 . . . . 3 . . Repair Stations 7 | . . . . . . . . . . . . . . . . . . . 3 . . . . 1 . . 3 . . Recycling Units 9 | . 6 . 3 . . . . . . . . . . . . . . . . . . . . . . . . . . Scanalyzers 7 | . . . . . . . . . . . 1 . . . . . . . . . 6 . . . . . . . . Garrison Access 25 | . . . . . . . 3 . 2 . 2 . 2 . . . 4 . 4 . . . . 3 . 3 2 . . Terminal Hacks 50 | . 5 . 14 . 4 1 6 . 3 . . . 3 . . . . . 2 . 2 3 . . . 1 2 3 1 Record 4 | . . . . . 4 . . . . . . . . . . . . . . . . . . . . . . . . Part Schematic 3 | . 1 . 1 . . . 1 . . . . . . . . . . . . . . . . . . . . . . Robot Schematic 2 | . 1 . 1 . . . . . . . . . . . . . . . . . . . . . . . . . . Robot Analysis 5 | . 1 . 2 . . 1 . . 1 . . . . . . . . . . . . . . . . . . . . Prototype ID Bank 1 | . . . 1 . . . . . . . . . . . . . . . . . . . . . . . . . . Open Door 5 | . . . . . . . . . . . . . . . . . . . . . . 1 . . . . 1 2 1 Branch Access Points 3 | . . . 1 . . . . . . . . . . . . . . . . . 1 . . . . 1 . . . Terminal Index 1 | . . . . . . . . . . . . . . . . . . . . . . . . . . . . 1 . Alert Level 1 | . . . . . . . 1 . . . . . . . . . . . . . . . . . . . . . . Unreport Threat 6 | . . . 1 . . . 1 . . . . . 2 . . . . . . . 1 1 . . . . . . . Locate Traps 7 | . . . 2 . . . 1 . 1 . . . 1 . . . . . 1 . . 1 . . . . . . . Hauler Manifests 5 | . 1 . 2 . . . 1 . . . . . . . . . . . 1 . . . . . . . . . . Zone Layout 7 | . 1 . 3 . . . 1 . 1 . . . . . . . . . . . . . . . . . 1 . . Fabricator Hacks 9 | . . . . . . . . . . . . . 2 . . . 2 . 1 . . 4 . . . . . . . Load Schematic 6 | . . . . . . . . . . . . . 1 . . . 1 . 1 . . 3 . . . . . . . Build 3 | . . . . . . . . . . . . . 1 . . . 1 . . . . 1 . . . . . . . Repair Station Hacks 2 | . . . . . . . . . . . . . . . . . . . 2 . . . . . . . . . . Scan Component 1 | . . . . . . . . . . . . . . . . . . . 1 . . . . . . . . . . Repair 1 | . . . . . . . . . . . . . . . . . . . 1 . . . . . . . . . . Recycling Unit Hacks 5 | . 3 . 2 . . . . . . . . . . . . . . . . . . . . . . . . . . Retrieve Components 5 | . 3 . 2 . . . . . . . . . . . . . . . . . . . . . . . . . . Scanalyzer 6 | . . . . . . . . . . . . . . . . . . . . . 6 . . . . . . . . Insert Component 3 | . . . . . . . . . . . . . . . . . . . . . 3 . . . . . . . . Analyze 3 | . . . . . . . . . . . . . . . . . . . . . 3 . . . . . . . . Garrison Access Hacks 10 | . . . . . . . 1 . 1 . 1 . 1 . . . 2 . 1 . . . . 1 . 1 1 . . Unlock Access 7 | . . . . . . . 1 . 1 . 1 . 1 . . . 1 . 1 . . . . 1 . . . . . Seal Access 1 | . . . . . . . . . . . . . . . . . . . . . . . . . . 1 . . . Coupler Status 2 | . . . . . . . . . . . . . . . . . 1 . . . . . . . . . 1 . . Unauthorized Hacks 38 | . 4 . 11 . . . 4 . 2 . 1 . 1 . 1 . 1 . 2 . 1 2 . 2 . . 5 . 1 Terminals 26 | . 3 . 10 . . . 4 . 1 . . . . . 1 . . . . . 1 2 . 1 . . 2 . 1 Track 13 | . 1 . 6 . . . 2 . 1 . . . . . . . . . . . . 2 . . . . 1 . . Assimilate 1 | . . . 1 . . . . . . . . . . . . . . . . . . . . . . . . . . Botnet 7 | . 2 . 2 . . . 1 . . . . . . . . . . . . . . . . 1 . . 1 . . Operators 5 | . . . 1 . . . 1 . . . . . . . 1 . . . . . 1 . . . . . . . 1 Fabricators 1 | . . . . . . . . . . . . . 1 . . . . . . . . . . . . . . . . Haulers 1 | . . . . . . . . . . . . . 1 . . . . . . . . . . . . . . . . Repair Stations 3 | . . . . . . . . . . . . . . . . . . . 1 . . . . . . . 2 . . Mechanics 3 | . . . . . . . . . . . . . . . . . . . 1 . . . . . . . 2 . . Recycling Units 2 | . 1 . 1 . . . . . . . . . . . . . . . . . . . . . . . . . . Tunnel 2 | . 1 . 1 . . . . . . . . . . . . . . . . . . . . . . . . . . Scanalyzers . | . . . . . . . . . . . . . . . . . . . . . . . . . . . . . . Garrison Access 6 | . . . . . . . . . 1 . 1 . . . . . 1 . 1 . . . . 1 . . 1 . . Reprogram 2 | . . . . . . . . . . . 1 . . . . . 1 . . . . . . . . . . . . Eject 4 | . . . . . . . . . 1 . . . . . . . . . 1 . . . . 1 . . 1 . . Data Cores Recovered 4 | . 2 . 1 . . . . . . . . . . . . . . . . . 1 . . . . . . . . Used 1 | . 1 . . . . . . . . . . . . . . . . . . . . . . . . . . . . Hacking Detections 76 | . 7 . 11 . . 1 4 . 3 . 5 . 5 . 1 . 2 . 6 . 5 5 . 3 . 2 10 3 3 Full Trace Events 10 | . 1 . . . . . . . . . 3 . 1 . . . . . 2 . . 1 . . . . . 2 . Feedback Events 1 | . . . . . . . . . . . . . . . . . . . 1 . . . . . . . . . . Corruption 1 | . . . . . . . . . . . . . . . . . . . 1 . . . . . . . . . . Feedback Blocked . | . . . . . . . . . . . . . . . . . . . . . . . . . . . . . . Robot Schematics Acquired 2 | . 1 . 1 . . . . . . . . . . . . . . . . . . . . . . . . . . Robots Built 2 | . . . . . . . . . . . . . 1 . . . 1 . . . . . . . . . . . . Matter 306 | . . . . . . . . . . . . . 153 . . . 153 . . . . . . . . . . . . Time 162 | . . . . . . . . . . . . . 81 . . . 81 . . . . . . . . . . . . Total Robot Build Rating 2 | . . . . . . . . . . . . . 1 . . . 1 . . . . . . . . . . . . Part Schematics Acquired 6 | . 1 . 1 . . . 1 . . . . . . . . . . . . . 3 . . . . . . . . Parts Built . | . . . . . . . . . . . . . . . . . . . . . . . . . . . . . . Matter 102 | . . . . . . . . . . . . . . . . . . . . . . 102 . . . . . . . Time 51 | . . . . . . . . . . . . . . . . . . . . . . 51 . . . . . . . Total Part Build Rating . | . . . . . . . . . . . . . . . . . . . . . . . . . . . . . . Parts Repaired 1 | . . . . . . . . . . . . . . . . . . . 1 . . . . . . . . . . Time 44 | . . . . . . . . . . . . . . . . . . . 44 . . . . . . . . . . Parts Recycled . | . . . . . . . . . . . . . . . . . . . . . . . . . . . . . . Recycled Matter . | . . . . . . . . . . . . . . . . . . . . . . . . . . . . . . Retrieved Matter . | . . . . . . . . . . . . . . . . . . . . . . . . . . . . . . Retrieved Components 23 | . 23 . . . . . . . . . . . . . . . . . . . . . . . . . . . . Parts Scanalyzed 3 | . . . . . . . . . . . . . . . . . . . . . 3 . . . . . . . . Part Schematics Acquired 3 | . . . . . . . . . . . . . . . . . . . . . 3 . . . . . . . . Parts Damaged . | . . . . . . . . . . . . . . . . . . . . . . . . . . . . . . Bothacking | -11 -10 -10 -9 -9 -9 -8 -8 -8 -8 -8 -7 -7 -7 -7 -6 -6 -6 -6 -5 -5 -4 -4 -4 -3 -3 -2 -2 -1 -1 ------------ Run | Scr Mat Min Mat Min Exi Min Mat Gar Mat Gar Fac Gar Fac Gar Fac Was Fac Gar Fac Gar Fac Arm Lab Res Gar Res Tes Acc Com Used RIF Installer 7 | . . . . . . . . 1 . 1 . 1 . 1 . . . 1 . 1 . . . . 1 . . . . Hotswap 1 | . . . . . . . . . . . . . . . . . . . . 1 . . . . . . . . . Command Fork 1 | . . . . . . . . . . . . 1 . . . . . . . . . . . . . . . . . Threat Obfuscator 1 | . . . . . . . . . . 1 . . . . . . . . . . . . . . . . . . . Alert ID Control 1 | . . . . . . . . . . . . . . . . . . . . . . . . . 1 . . . . Autooverride 1 | . . . . . . . . . . . . . . . . . . 1 . . . . . . . . . . . Autoassimilate 1 | . . . . . . . . . . . . . . 1 . . . . . . . . . . . . . . . Robots Hacked 142 | . . . . . . . . . 4 . 6 5 . 5 5 1 5 6 13 13 20 10 . . 11 6 17 4 11 Non-combat 28 | . . . . . . . . . 3 . 3 . . . 1 . 4 . 3 . 2 3 . . . 2 1 4 2 Combat 114 | . . . . . . . . . 1 . 3 5 . 5 4 1 1 6 10 13 18 7 . . 11 4 16 . 9 Autooverrided 16 | . . . . . . . . . . . . . . . . . . . 1 3 3 . . . 3 . 3 . 3 Autoassimilated 24 | . . . . . . . . . . . . . . . 1 . 1 . 3 3 3 2 . . 2 . 5 . 4 Robot Hacks Applied 129 | . . . . . . . . . 4 . 8 5 . 5 4 1 8 6 13 11 17 9 . . 7 9 11 4 7 parse_system 9 | . . . . . . . . . . . . . . . . 1 . . 1 4 1 1 . . . . 1 . . no_distress 1 | . . . . . . . . . . . . . . . . . . . . . . . . . . 1 . . . start_evac 1 | . . . . . . . . . . . . . . . . . . . 1 . . . . . . . . . . find_chute 1 | . . . . . . . . . . . . . . . 1 . . . . . . . . . . . . . . ignore_repairs 8 | . . . . . . . . . . . . . . . . . 8 . . . . . . . . . . . . drop_inventory 10 | . . . . . . . . . 3 . 1 . . . . . . . 1 . 1 . . . . 1 1 2 . ignore_parts 1 | . . . . . . . . . . . . . . . . . . . . . . . . . . . . . 1 purge_threat 5 | . . . . . . . . . . . . . . . . . . . 2 . . . . . . . . . 3 disarm_traps 1 | . . . . . . . . . . . . . . . . . . . . . . . . . . . . . 1 summon_haulers 1 | . . . . . . . . . . . 1 . . . . . . . . . . . . . . . . . . map_route 3 | . . . . . . . . . . . . . . . . . . . . . 1 . . . . 1 . 1 . disable_scanner 3 | . . . . . . . . . . . . . . . . . . . . . . . . . . . 3 . . locate_prototypes 1 | . . . . . . . . . . . . . . . . . . . . . . . . . . . 1 . . find_garrison 4 | . . . . . . . . . . . 1 . . . . . . . 1 . 1 . . . . 1 . . . scatter_targeting 1 | . . . . . . . . . . . . 1 . . . . . . . . . . . . . . . . . spike_heat 2 | . . . . . . . . . . . . . . . . . . . . 1 . . . . . . . . 1 amplify_resonance 3 | . . . . . . . . . . . . . . . . . . 1 . . 1 . . . . . 1 . . reboot_system 3 | . . . . . . . . . . . . . . 1 . . . . . . 2 . . . . . . . . overwrite_iff 10 | . . . . . . . . . . . . . . . . . . 4 1 1 2 1 . . 1 . . . . formatsys_low 5 | . . . . . . . . . . . 2 . . . . . . . 1 . . 1 . . . . . 1 . formatsys_high 56 | . . . . . . . . . 1 . 3 4 . 4 3 . . 1 5 5 8 6 . . 6 5 4 . 1 Relay Couplers Released 114 | . . . . . . . . 4 3 11 . 18 . 19 . . . 15 4 16 . . . 3 10 1 7 3 . Ejected 14 | . . . . . . . . . 3 . . . . . . . . . 4 . . . . 3 . . 4 . . Machine Destruction 94 | . . . . . . . . 4 . 11 . 18 . 19 . . . 15 . 16 . . . . 10 1 . . . Programmers 6 | . . . . . . . . . . . . . . . . . . . . . . . . . . . 3 3 . Attached 46 | . . . . . . . . . 2 . 3 3 . 3 2 . . 2 6 4 7 3 . . 6 3 1 1 . Robots Rewired 22 | . . . . . . . . . . . 3 . . 6 . . . . . . . 10 . . . . 1 . 2 Allies Hacked 4 | . . . . . . . . . . . . . . . . . 1 . . . . 1 . . . 2 . . . Hacks Repelled . | . . . . . . . . . . . . . . . . . . . . . . . . . . . . . . Allies | -11 -10 -10 -9 -9 -9 -8 -8 -8 -8 -8 -7 -7 -7 -7 -6 -6 -6 -6 -5 -5 -4 -4 -4 -3 -3 -2 -2 -1 -1 -------- Run | Scr Mat Min Mat Min Exi Min Mat Gar Mat Gar Fac Gar Fac Gar Fac Was Fac Gar Fac Gar Fac Arm Lab Res Gar Res Tes Acc Com Total Allies 167 | . . . . 2 . . . . 1 . 9 5 1 10 5 21 2 5 12 13 17 22 . . 12 5 14 1 10 Largest Group 32 | . . . . 2 . . . . 1 1 4 5 2 8 12 32 31 17 8 8 6 6 3 3 5 4 4 1 4 Highest-Rated Group 982 | . . . . 46 . . . . 15 15 84 113 52 202 274 982 904 571 251 162 239 381 141 141 252 233 232 31 244 Highest-Rated Ally 125 | . . . . 31 . . . . 15 15 32 32 26 38 38 50 46 46 49 49 64 115 47 47 64 69 125 31 64 Total Orders 65 | . . . . . . . . . . . 7 13 1 8 2 . 3 . . 12 2 5 . 2 3 4 2 1 . STAY 38 | . . . . . . . . . . . 5 8 . 6 1 . 1 . . 7 1 2 . 1 2 3 1 . . ROAM 2 | . . . . . . . . . . . . 2 . . . . . . . . . . . . . . . . . FOLLOW 21 | . . . . . . . . . . . 2 3 . 2 1 . 1 . . 5 1 2 . 1 1 1 1 . . AID 4 | . . . . . . . . . . . . . 1 . . . 1 . . . . 1 . . . . . 1 . Ally Attacks 957 | . . . . 2 . . . . 2 . 30 37 . 29 45 5 127 126 75 53 119 118 . 16 36 34 52 . 51 Total Damage 25361 | . . . . 42 . . . . 45 . 494 683 . 619 918 102 2401 2604 1741 818 2727 6180 . 261 1095 1135 1538 . 1958 Kills 163 | . . . . . . . . . 2 . 3 7 . 7 10 1 18 24 10 6 26 31 . 4 . 6 2 . 6 Allies Corrupted 7 | . . . . . . . . . . . . . . . . . 1 . . . 1 2 . . 1 1 . . 1 Allies Melted 2 | . . . . . . . . . . . . . . . . . . 1 1 . . . . . . . . . . Intel | -11 -10 -10 -9 -9 -9 -8 -8 -8 -8 -8 -7 -7 -7 -7 -6 -6 -6 -6 -5 -5 -4 -4 -4 -3 -3 -2 -2 -1 -1 ------- Run | Scr Mat Min Mat Min Exi Min Mat Gar Mat Gar Fac Gar Fac Gar Fac Was Fac Gar Fac Gar Fac Arm Lab Res Gar Res Tes Acc Com Robot Analysis Total 5 | . 1 . 2 . . 1 . . 1 . . . . . . . . . . . . . . . . . . . . Derelict Logs Recovered 3 | . . 1 . 2 . . . . . . . . . . . . . . . . . . . . . . . . . Drone Launches . | . . . . . . . . . . . . . . . . . . . . . . . . . . . . . . Drone Recoveries . | . . . . . . . . . . . . . . . . . . . . . . . . . . . . . . Exploration | -11 -10 -10 -9 -9 -9 -8 -8 -8 -8 -8 -7 -7 -7 -7 -6 -6 -6 -6 -5 -5 -4 -4 -4 -3 -3 -2 -2 -1 -1 ------------- Run | Scr Mat Min Mat Min Exi Min Mat Gar Mat Gar Fac Gar Fac Gar Fac Was Fac Gar Fac Gar Fac Arm Lab Res Gar Res Tes Acc Com Turns Passed 45753 | 120 2014 955 2869 1369 495 1274 1389 554 1219 1646 2439 5159 1356 2537 460 802 1124 1540 890 2307 1051 2230 29 407 2105 1799 2921 554 2139 Spaces Moved 21303 | 59 858 549 1234 644 246 578 545 233 477 663 1121 2453 767 1305 275 410 601 904 431 1336 549 928 17 190 1045 777 1140 215 753 Core 29 | 4 . . . . . . . . . . . . . . . . . . . . . . . . . . . . 25 Treads 11670 | 55 858 327 1234 644 246 578 545 233 477 663 1034 192 . . . . 1 4 58 87 38 289 17 190 1045 777 1140 215 723 Legs 5 | . . . . . . . . . . . . . . . . . . . . . . . . . . . . . 5 Wheels 9599 | . . 222 . . . . . . . . 87 2261 767 1305 275 410 600 900 373 1249 511 639 . . . . . . . Hover . | . . . . . . . . . . . . . . . . . . . . . . . . . . . . . . Flight . | . . . . . . . . . . . . . . . . . . . . . . . . . . . . . . Fastest Speed 50 | 50 160 130 180 200 200 200 200 200 200 205 140 110 120 125 140 140 140 140 140 130 140 120 177 165 165 165 152 145 50 Average Speed 163 | 152 179 159 190 200 200 200 200 200 201 217 178 141 139 138 140 140 140 146 146 140 145 149 177 171 165 179 182 147 142 Slowest Speed 300 | 160 180 180 220 200 200 200 200 200 220 225 200 240 140 140 140 140 240 300 180 180 184 185 177 177 165 190 220 165 180 Overloaded Moves . | . . . . . . . . . . . . . . . . . . . . . . . . . . . . . . Propulsion Burnouts . | . . . . . . . . . . . . . . . . . . . . . . . . . . . . . . Robots Hopped . | . . . . . . . . . . . . . . . . . . . . . . . . . . . . . . Cave-ins Triggered . | . . . . . . . . . . . . . . . . . . . . . . . . . . . . . . Exploration Rate (%) 53 | 5 99 82 90 98 58 96 48 43 44 69 22 97 20 93 9 89 16 98 12 93 17 59 5 6 86 21 84 8 35 Regions Visited 29 Branch Regions 8 Pre-discovered Areas 4 | . 1 . 1 1 1 . . . . . . . . . . . . . . . . . . . . . . . . Known Exits Taken 10 | . . . 1 . . . 1 . 1 . 1 . 1 . . . 1 . 1 . 1 . . 1 . 1 . . . Unknown Exits Taken 10 | 1 1 1 . 1 1 1 . . . . . . . . . . . . . . . 1 1 . . . 1 1 . Scrap Searched 5 | . . 1 . 1 . 3 . . . . . . . . . . . . . . . . . . . . . . . Spaces Dug 137 | . 10 . . . . 11 . . 3 . . 1 . . . . 25 . . . 1 2 . 26 14 5 37 . 2 Terrain Destroyed 800 | . 18 . 14 . . 19 . . 13 5 15 21 23 18 . . 60 8 21 59 6 62 . 57 35 11 252 34 49 Melee 4 | . . . . . . . . . 3 . . 1 . . . . . . . . . . . . . . . . . Projectile 327 | . 18 . 1 . . . . . 1 1 2 . . 1 . . 8 8 21 7 6 22 . . 19 11 142 14 45 AOE 469 | . . . 13 . . 19 . . 9 4 13 20 23 17 . . 52 . . 52 . 40 . 57 16 . 110 20 4 Terrain Rammed . | . . . . . . . . . . . . . . . . . . . . . . . . . . . . . . Walls Destroyed . | . . . . . . . . . . . . . . . . . . . . . . . . . . . . . . Machines Disabled . | . . . . . . . . . . . . . . . . . . . . . . . . . . . . . . Actions | -11 -10 -10 -9 -9 -9 -8 -8 -8 -8 -8 -7 -7 -7 -7 -6 -6 -6 -6 -5 -5 -4 -4 -4 -3 -3 -2 -2 -1 -1 --------- Run | Scr Mat Min Mat Min Exi Min Mat Gar Mat Gar Fac Gar Fac Gar Fac Was Fac Gar Fac Gar Fac Arm Lab Res Gar Res Tes Acc Com Total 29113 | 76 1125 594 1530 676 250 629 692 288 651 811 1424 3975 956 1953 321 634 833 1076 618 1697 734 1417 16 250 1321 1049 1697 363 1457 Wait 3604 | . 74 1 81 6 . 5 25 20 49 51 98 1206 83 403 8 193 178 43 78 233 30 79 . 15 85 86 194 53 227 Move 21278 | 58 857 548 1233 643 245 577 545 232 477 662 1120 2452 767 1304 275 409 600 903 430 1335 548 927 16 189 1044 776 1139 214 753 Hop . | . . . . . . . . . . . . . . . . . . . . . . . . . . . . . . Pick Up 372 | 6 31 2 14 1 1 6 22 3 15 7 14 36 9 23 4 5 2 11 11 11 19 27 . 8 19 18 19 6 22 Fast Attach 275 | 7 1 4 13 1 2 . . 1 1 4 19 32 9 7 3 2 . 5 12 . 16 35 . 5 10 15 28 7 36 Attach 180 | . 3 2 4 1 . 6 8 3 7 5 7 12 2 8 5 1 1 3 6 6 13 24 . 4 9 5 13 2 20 Detach 32 | . 1 . . . . . . . . . 1 2 1 2 1 . . . 1 . 3 7 . 1 2 . 2 2 6 Swap 451 | . 17 5 26 . . 2 4 . 21 9 21 21 7 19 3 4 7 3 6 12 23 44 . 9 24 25 60 15 64 Drop 544 | . 28 9 40 1 2 1 11 2 22 12 31 46 21 41 4 12 3 14 17 9 22 38 . 7 22 30 40 10 49 Fire 1990 | 5 110 22 119 21 . 32 75 17 49 43 97 96 57 69 18 1 40 35 53 53 60 205 . 12 79 93 196 54 279 Melee 74 | . . . . . . . . . 10 . 7 42 . 6 . 7 . . 2 . . . . . . . . . . Ram 2 | . . . . . . . . . . . . . . . . . . . . . . 1 . . . . 1 . . Kick . | . . . . . . . . . . . . . . . . . . . . . . . . . . . . . . Crush 14 | . 3 1 . 2 . . 2 . . . . 1 . . . . . . 2 . . . . . 1 . 1 . 1 Escape Stasis 251 | . . . . . . . . 10 . 18 . 29 . 71 . . . 59 . 38 . . . . 26 . . . . Rewire 46 | . . . . . . . . . . . 9 . . . . . 2 . . . . 30 . . . 1 4 . . Trap . | . . . . . . . . . . . . . . . . . . . . . . . . . . . . . . Miscellaneous . | . . . . . . . . . . . . . . . . . . . . . . . . . . . . . . Route ------- -11/Scrapyard -10/Materials (discovered 5 exits: *Mat x3 / [*Min x2]) -10/Mines -9/Materials (discovered 3 exits: *Mat x2 / *Min) -9/Mines (discovered 4 exits: *Mat x2 / *Exi / [*Zio]) -9/Exiles -8/Mines (discovered 2 exits: *Mat x2) -8/Materials (discovered 3 exits: *Fac / *Sto / Gar) -8/Garrison -8/Materials (discovered 2 exits: *Fac / Gar) -8/Garrison (discovered 2 exits: *Fac x2) -7/Factory (discovered 2 exits: [*Low] / Gar) -7/Garrison (discovered 3 exits: *Fac x3) -7/Factory -7/Garrison (discovered 3 exits: *Fac x3) -6/Factory -6/Waste -6/Factory -6/Garrison (discovered 3 exits: *Fac x3) -5/Factory -5/Garrison (discovered 3 exits: *Fac x3) -4/Factory (discovered 3 exits: Upp x2 / *Arm) -4/Armory (discovered 2 exits: *Res / *Lab) -4/Lab -3/Research -3/Garrison (discovered 3 exits: *Res x3) -2/Research (discovered 2 exits: *Tes x2) -2/Testing -1/Access -1/Command History --------- Turn | Location | Event 49 | -11/Scrapyard | Discovered new exit (range 16) 121 | -11/Scrapyard | Entered Materials 297 | -10/Materials | Discovered new exit (range 16) 309 | -10/Materials | Build established: Mutant 1013 | -10/Materials | Discovered new exit (range 16) 1202 | -10/Materials | Discovered new exit (range 4) 1440 | -10/Materials | Central database locked down 1820 | -10/Materials | Discovered new exit (range 13) 1874 | -10/Materials | Discovered new exit (range 8) 2135 | -10/Materials | Entered Mines 2470 | -10/Mines | Discovered new exit (range 8) 2649 | -10/Mines | Learned Materials terminal intel 2677 | -10/Mines | Received a Rocket Launcher from a helpful Derelict 2810 | -10/Mines | Core integrity fell below 50% 3090 | -10/Mines | Entered Materials 3090 | -9/Materials | Evolved 2 slots: Utility x1, Weapon x1 3091 | -9/Materials | Loaded intel: 12 terminal locations 3387 | -9/Materials | Build established: Scavenger-Tank 4661 | -9/Materials | Discovered new exit (range 15) 4904 | -9/Materials | Discovered new exit (range 16) 4983 | -9/Materials | Identified exit to Mines 5045 | -9/Materials | Build established: Hauler-Tank 5838 | -9/Materials | Discovered new exit (range 4) 5959 | -9/Materials | Entered Mines 5960 | -9/Mines | Assembled infested the area 5960 | -9/Mines | A Derelict revealed a hidden shortcut to a safe place 6000 | -9/Mines | Core integrity fell below 50% 6047 | -9/Mines | A weapon hastily lodged in a ceiling crevice suddenly fell to the ground 6279 | -9/Mines | Learned Materials non-interactive machine intel 6567 | -9/Mines | Discovered new exit (range 6) 6618 | -9/Mines | Learned Materials terminal intel 6803 | -9/Mines | Deemed a non-threat by the Exiles lab entrance 6944 | -9/Mines | Discovered new exit (range 9) 7320 | -9/Mines | Discovered new exit (range 5) 7328 | -9/Mines | Entered Exiles 7382 | -9/Exiles | Met 8R-AWN 7410 | -9/Exiles | Met EX-HEX 7488 | -9/Exiles | Met EX-DEC 7500 | -9/Exiles | Learned location of Zion (-7) 7805 | -9/Exiles | Discovered new exit (range 10) 7823 | -9/Exiles | Entered Mines 8013 | -8/Mines | Discovered new exit (range 15) 8792 | -8/Mines | Discovered new exit (range 11) 9097 | -8/Mines | Entered Materials 9097 | -8/Materials | Evolved 2 slots: Utility x2 9098 | -8/Materials | Loaded intel: 28 non-interactive machine locations 9099 | -8/Materials | Loaded intel: 12 terminal locations 9675 | -8/Materials | Build established: Hauler-Gunner 9847 | -8/Materials | Discovered new exit (range 4) 9983 | -8/Materials | Identified exit to Storage 10045 | -8/Materials | Discovered new exit (range 5) 10404 | -8/Materials | Garrison activated, responded to threat 10486 | -8/Materials | Identified exit to Garrison 10486 | -8/Materials | Entered Garrison 10588 | -8/Garrison | Triggered checkpoint 10626 | -8/Garrison | Triggered checkpoint 10794 | -8/Garrison | Discovered new exit (range 13) 10828 | -8/Garrison | Installed Relay Interface Framework 10900 | -8/Garrison | Triggered checkpoint 10936 | -8/Garrison | Garrison Relay disabled 11040 | -8/Garrison | Entered Materials 11420 | -8/Materials | Build established: Hauler-Tank 11440 | -8/Materials | Discovered new exit (range 13) 12161 | -8/Materials | Garrison activated, responded to threat 12240 | -8/Materials | First assault squad dispatched 12258 | -8/Materials | Identified exit to Garrison 12259 | -8/Materials | Entered Garrison 12259 | -8/Garrison | Accompanied by 1 ally 12504 | -8/Garrison | Triggered checkpoint 12609 | -8/Garrison | Garrison Relay disabled 12760 | -8/Garrison | Triggered checkpoint 12848 | -8/Garrison | Discovered new exit (range 11) 12952 | -8/Garrison | Triggered checkpoint 13014 | -8/Garrison | Triggered checkpoint 13071 | -8/Garrison | Discovered new exit (range 14) 13124 | -8/Garrison | Expanded RIF knowledge: Threat Obfuscation 13212 | -8/Garrison | Garrison Relay disabled 13490 | -8/Garrison | Triggered checkpoint 13533 | -8/Garrison | Garrison Relay disabled 13905 | -8/Garrison | Entered Factory 13905 | -7/Factory | Evolved 2 slots: Propulsion x1, Utility x1 13965 | -7/Factory | Build established: Bothacker-Tank 14893 | -7/Factory | Discovered new exit (range 11) 15946 | -7/Factory | Garrison activated, responded to threat 16307 | -7/Factory | Identified exit to Garrison 16344 | -7/Factory | Entered Garrison 16344 | -7/Garrison | Accompanied by 3 allies 16812 | -7/Garrison | Build established: Hauler-Mutant 17144 | -7/Garrison | Build established: Hauler-Tank 17614 | -7/Garrison | Triggered checkpoint 17666 | -7/Garrison | Garrison Relay disabled 17736 | -7/Garrison | Triggered checkpoint 17807 | -7/Garrison | Lost 4 parts (1n2u1w) 17865 | -7/Garrison | Discovered new exit (range 21) 18131 | -7/Garrison | Triggered checkpoint 18161 | -7/Garrison | Garrison Relay disabled 18306 | -7/Garrison | Triggered checkpoint 18502 | -7/Garrison | Discovered new exit (range 12) 18525 | -7/Garrison | Expanded RIF knowledge: Command Fork 18604 | -7/Garrison | Triggered checkpoint 18784 | -7/Garrison | Garrison Relay disabled 18917 | -7/Garrison | Triggered checkpoint 18970 | -7/Garrison | Discovered new exit (range 9) 18988 | -7/Garrison | Triggered checkpoint 19043 | -7/Garrison | Garrison Relay disabled 19147 | -7/Garrison | Triggered checkpoint 19460 | -7/Garrison | Build established: Hauler-Mutant 19711 | -7/Garrison | Garrison Relay disabled 20896 | -7/Garrison | Build established: Bothacker-Mutant 21503 | -7/Garrison | Entered Factory 21503 | -7/Factory | Accompanied by 2 allies 21871 | -7/Factory | Build established: Bothacker-Gunner 21913 | -7/Factory | Fabricated M-13 Machinist? 22014 | -7/Factory | Garrison activated, responded to threat 22605 | -7/Factory | Core integrity fell below 50% 22818 | -7/Factory | Garrison activated, responded to threat 22859 | -7/Factory | Identified exit to Garrison 22859 | -7/Factory | Entered Garrison 23372 | -7/Garrison | Build established: Bothacker-Mutant 23608 | -7/Garrison | Triggered checkpoint 23609 | -7/Garrison | Triggered checkpoint 23759 | -7/Garrison | Triggered checkpoint 23767 | -7/Garrison | Triggered checkpoint 23912 | -7/Garrison | Discovered new exit (range 12) 23986 | -7/Garrison | Triggered checkpoint 23994 | -7/Garrison | Garrison Relay disabled 24159 | -7/Garrison | Triggered checkpoint 24209 | -7/Garrison | Garrison Relay disabled 24248 | -7/Garrison | Discovered new exit (range 15) 24362 | -7/Garrison | Discovered new exit (range 10) 24390 | -7/Garrison | Expanded RIF knowledge: Autoassimilate 24424 | -7/Garrison | Triggered checkpoint 24510 | -7/Garrison | Garrison Relay disabled 24851 | -7/Garrison | Build established: Botlord-Mutant 25186 | -7/Garrison | Triggered checkpoint 25207 | -7/Garrison | Core integrity fell below 20% 25266 | -7/Garrison | Garrison Relay disabled 25396 | -7/Garrison | Entered Factory 25396 | -6/Factory | Accompanied by 8 allies 25396 | -6/Factory | Evolved 2 slots: Utility x2 25620 | -6/Factory | Build established: Botlord-Gunner 25856 | -6/Factory | Sucked down chute 25856 | -6/Factory | Entered Waste 25856 | -6/Waste | Met up with 1 ally sucked down the chute earlier 25857 | -6/Waste | Joined by Warlord forces that had cleared the area 26075 | -6/Waste | 11 allies followed down the chute 26090 | -6/Waste | Build established: Botlord-Mutant 26230 | -6/Waste | A Compactor rumbled back to life 26230 | -6/Waste | Spotted C-40 Crusher 26231 | -6/Waste | Allies destroyed C-40 Crusher 26314 | -6/Waste | Discovered new exit (range 13) 26516 | -6/Waste | Build established: Botlord-Gunner 26531 | -6/Waste | Found Damper Plating 26658 | -6/Waste | Entered Factory 26658 | -6/Factory | Accompanied by 31 allies 26735 | -6/Factory | Spotted B-75 Beast 26748 | -6/Factory | Allies destroyed B-75 Beast 26839 | -6/Factory | Fabricated M-13 Machinist? 27480 | -6/Factory | Build established: Botlord-Mutant 27689 | -6/Factory | Identified exit to Garrison 27782 | -6/Factory | Entered Garrison 27782 | -6/Garrison | Accompanied by 16 allies 27846 | -6/Garrison | Spotted B-75 Beast 27852 | -6/Garrison | Triggered checkpoint 27888 | -6/Garrison | Triggered checkpoint 27892 | -6/Garrison | Allies destroyed B-75 Beast 28018 | -6/Garrison | Discovered new exit (range 12) 28040 | -6/Garrison | Expanded RIF knowledge: Autooverride 28086 | -6/Garrison | Triggered checkpoint 28108 | -6/Garrison | Garrison Relay disabled 28284 | -6/Garrison | Discovered new exit (range 9) 28380 | -6/Garrison | Triggered checkpoint 28395 | -6/Garrison | Garrison Relay disabled 28572 | -6/Garrison | Triggered checkpoint 28623 | -6/Garrison | Garrison Relay disabled 28684 | -6/Garrison | Phase Generator disabled 28934 | -6/Garrison | Triggered checkpoint 28990 | -6/Garrison | Garrison Relay disabled 29039 | -6/Garrison | Discovered new exit (range 12) 29322 | -6/Garrison | Entered Factory 29322 | -5/Factory | Accompanied by 4 allies 29322 | -5/Factory | Evolved 2 slots: Propulsion x1, Utility x1 29889 | -5/Factory | Repaired Arm. Huge Wheel 29988 | -5/Factory | P-70 Sage assimilated allied Soldier 6e 30196 | -5/Factory | Identified exit to Garrison 30212 | -5/Factory | Entered Garrison 30212 | -5/Garrison | Accompanied by 1 ally 30310 | -5/Garrison | Triggered checkpoint 30329 | -5/Garrison | Garrison Relay disabled 30474 | -5/Garrison | Triggered checkpoint 30516 | -5/Garrison | Spotted B-75 Beast 30525 | -5/Garrison | Destroyed B-75 Beast 30525 | -5/Garrison | Triggered checkpoint 30613 | -5/Garrison | Triggered checkpoint 30688 | -5/Garrison | Triggered checkpoint 30785 | -5/Garrison | Discovered new exit (range 9) 30886 | -5/Garrison | Garrison Relay disabled 31328 | -5/Garrison | Garrison Relay disabled 31362 | -5/Garrison | Discovered new exit (range 8) 31522 | -5/Garrison | Discovered new exit (range 21) 31558 | -5/Garrison | Expanded RIF knowledge: Hotswap 31638 | -5/Garrison | Triggered checkpoint 32105 | -5/Garrison | Garrison Relay disabled 32422 | -5/Garrison | Triggered checkpoint 32466 | -5/Garrison | Phase Generator disabled 32519 | -5/Garrison | Entered Factory 32519 | -4/Factory | Accompanied by 6 allies 32519 | -4/Factory | Evolved 2 slots: Power x1, Utility x1 33051 | -4/Factory | Identified exit to Upper Caves 33051 | -4/Factory | Identified exit to Armory 33570 | -4/Factory | Entered Armory 33570 | -4/Armory | Accompanied by 3 allies 33599 | -4/Armory | Found Prototype Launcher 33599 | -4/Armory | Identified Mni. Smartbomb Launcher 33787 | -4/Armory | Found Prototype Launcher 33787 | -4/Armory | Identified Tesla Bomb Launcher 33845 | -4/Armory | Destroyed 7 combat bots 33909 | -4/Armory | Spotted B-86 Titan 33912 | -4/Armory | System corruption reached 10% 33917 | -4/Armory | Assimilated Titan 7a with formatsys_high 34118 | -4/Armory | Found Unknown Launcher 34118 | -4/Armory | Identified Fusion Bomb Launcher 34122 | -4/Armory | Found Gamma Bomb Array 34281 | -4/Armory | Destroyed 7 combat bots 34351 | -4/Armory | Discovered new exit (range 20) 34467 | -4/Armory | Destroyed 8 combat bots 34684 | -4/Armory | Build established: Bothacker-Gunner 34820 | -4/Armory | First assault squad dispatched 34954 | -4/Armory | P-70 Sage assimilated allied Archangel 7c 35022 | -4/Armory | Lost 4 parts (2n1u1w) 35187 | -4/Armory | Build established: Hauler-Mutant 35727 | -4/Armory | Core integrity fell below 50% 35785 | -4/Armory | Discovered new exit (range 4) 35800 | -4/Armory | Entered Lab 35800 | -4/Lab | Accompanied by 3 allies 35800 | -4/Lab | Discovered new exit (range 9) 35825 | -4/Lab | Unable to decrypt terminal 35829 | -4/Lab | Entered Research 35829 | -3/Research | Accompanied by 3 allies 35829 | -3/Research | Evolved 2 slots: Utility x2 36224 | -3/Research | Identified exit to Garrison 36236 | -3/Research | Entered Garrison 36236 | -3/Garrison | Accompanied by 3 allies 36280 | -3/Garrison | Triggered checkpoint 36312 | -3/Garrison | Garrison Relay disabled 36435 | -3/Garrison | Spotted B-86 Titan 36446 | -3/Garrison | Triggered checkpoint 36455 | -3/Garrison | Triggered checkpoint 36795 | -3/Garrison | Destroyed B-86 Titan 36827 | -3/Garrison | Found Unknown Protection 36827 | -3/Garrison | Identified Hvy. Reflective Plating 36945 | -3/Garrison | Discovered new exit (range 9) 37068 | -3/Garrison | Discovered new exit (range 12) 37084 | -3/Garrison | Build established: Botlord-Gunner 37103 | -3/Garrison | Expanded RIF knowledge: Alert ID Control 37195 | -3/Garrison | Triggered checkpoint 37207 | -3/Garrison | Triggered checkpoint 37371 | -3/Garrison | Discovered new exit (range 19) 37382 | -3/Garrison | Triggered checkpoint 37404 | -3/Garrison | Garrison Relay disabled 37594 | -3/Garrison | Triggered checkpoint 37657 | -3/Garrison | Garrison Relay disabled 37802 | -3/Garrison | Triggered checkpoint 38095 | -3/Garrison | Build established: Botlord-Mutant 38341 | -3/Garrison | Entered Research 38341 | -2/Research | Accompanied by 3 allies 38341 | -2/Research | Evolved 2 slots: Utility x2 39057 | -2/Research | Identified exit to Testing 39065 | -2/Research | P-80 Master assimilated allied Terminator 9a 39086 | -2/Research | System corruption reached 10% 39273 | -2/Research | Build established: Botlord-Gunner 39987 | -2/Research | Build established: Botlord-Mutant 40140 | -2/Research | Entered Testing 40495 | -2/Testing | Spotted Striker 40497 | -2/Testing | Spotted Striker 41190 | -2/Testing | Discovered new exit (range 21) 41394 | -2/Testing | Found SHELL Armor 41478 | -2/Testing | Destroyed 8 combat bots 41869 | -2/Testing | Found Prototype Energy Cannon 41869 | -2/Testing | Identified Disintegrator 42183 | -2/Testing | First assault squad dispatched 42526 | -2/Testing | Lost 3 parts (2u1w) 42633 | -2/Testing | Spotted PL-QNN1PJ89YV 42663 | -2/Testing | Rewired PL-QNN1PJ89YV 42672 | -2/Testing | Protovariant out of control (PL-QNN1PJ89YV) 42731 | -2/Testing | Destroyed PL-QNN1PJ89YV 42738 | -2/Testing | Spotted Investigator 42807 | -2/Testing | Scanned by Researcher 42815 | -2/Testing | Destroyed Investigator 43061 | -2/Testing | Entered Access 43061 | -1/Access | Evolved 2 slots: Propulsion x2 43236 | -1/Access | Build established: Hauler-Gunner 43252 | -1/Access | Found Exp. Thermal Shield 43255 | -1/Access | Found Hellfire Missile Launcher 43257 | -1/Access | Found Exp. Thermal Shield 43311 | -1/Access | First assault squad dispatched 43570 | -1/Access | Door terminal overloaded 43606 | -1/Access | Discovered new exit (range 7) 43615 | -1/Access | Entered Command 43900 | -1/Command | First assault squad dispatched 44423 | -1/Command | System corruption reached 10% 44620 | -1/Command | Spotted B-99 Colossus 44815 | -1/Command | Destroyed 7 combat bots 44935 | -1/Command | Spotted M Guard 44935 | -1/Command | Spotted M Guard 44935 | -1/Command | Spotted Combat Programmer 45045 | -1/Command | Spotted Combat Programmer 45058 | -1/Command | Destroyed Combat Programmer 45077 | -1/Command | Destroyed Combat Programmer 45104 | -1/Command | Lost 3 parts (2n1w) 45127 | -1/Command | Destroyed M Guard 45131 | -1/Command | Destroyed M Guard 45131 | -1/Command | All MAIN.C guards destroyed 45160 | -1/Command | Lost 3 parts (1n1u1w) 45166 | -1/Command | Found Prototype Reactor 45166 | -1/Command | Identified Zero-point Reactor 45169 | -1/Command | Found Prototype Device 45169 | -1/Command | Identified AEGIS Remote Shield 45178 | -1/Command | Found Zero-point Reactor 45190 | -1/Command | Found Zero-point Reactor 45230 | -1/Command | Found Prototype Protection 45230 | -1/Command | Identified Hvy. Regenerative Plating 45243 | -1/Command | Destroyed 9 combat bots 45265 | -1/Command | Found Prototype Device 45265 | -1/Command | Identified Thermal Barrier 45272 | -1/Command | Found AEGIS Remote Shield 45312 | -1/Command | Found Thermal Barrier 45320 | -1/Command | Found Hvy. Regenerative Plating 45338 | -1/Command | Found Zero-point Reactor 45422 | -1/Command | System corruption reached 30% 45459 | -1/Command | Met MAIN.C 45508 | -1/Command | Destroyed MAIN.C Shell 45510 | -1/Command | MAIN.C activated Command garrisons 45512 | -1/Command | 0b10 Conduit disabled 45602 | -1/Command | Destroyed 7 combat bots 45736 | -1/Command | Core integrity fell below 50% 45736 | -1/Command | Released all parts (13) 45743 | -1/Command | Core integrity fell below 20% 45754 | -1/Command | Destroyed by MAIN.C with Omega Cannon Last Messages --------------- 45736_ Released Exp. Power Amplifier. 45736_ Released Zero-point Reactor. 45736_ Released Exp. Energy Well. 45736_ Released Disintegrator. 45736_ Released Myomer Leg. 45737_ Dropped Neutron Missile Launcher. 45738_ U7HSWKNAZU EFD#8#:W>OFV, BBA2CMRHO> 45738_ Penetrated by Slug. 45738_ Slug penetrates 0b10 Conduit. 45738_ Penetrated by Slug. 45738_ Acquired Gamma Bomb Array. 45739_ Knocked back. 45740_ Dropped Adv. Weapon Cycler. 45740_ Acquired Imp. Quantum Reactor. 45741_ Penetrated by Slug. 45742_ Knocked back. 45744_ Penetrated by Slug. 45745_ Slug penetrates 0b10 Conduit. 45745_ Slug penetrates MAIN.C. 45751_ Penetrated by Slug. Map ----- +----------------------------------------------------+ | ?????????????????????????????????????????????????? | | ?????????????????????????????????????????????????? | | ?????????????????????????????????????????????????? | | ?????????????????????????????????????????????????? | | ???????o?????????????????????????????????????????? | | ?????????????????????????????????????????????????? | | ?????????????????????????????????????????????????? | | ?????????????????????????????????????????????????? | | ?????????????????????????????????????????????????? | | ????????????????????????#######################??? | | ????????????????????????#""""""" """" #??? | | ????????????????????????#" " #??? | | ????????????????????????#""""" =* #### | | ????????????????????????#"""""" " ]=%==*= = | | ????????????????????????# ! !![==!%%! | | ???????????????????????##"" " " ] ![!==%=!% | | ???????????????????????#" """ *]==!%%#### | | ????????????????????????# l %!!![![[#? | | ????????????????????????# !!!/=[[=## | | ????????????????????????# *!*=%! | | ????????????????????????#" "M ]!* " ## | | ????????????????????????#"" " #? | | ????????????????????????# ###? | | ????????????????????????# #??? | | ????????????????????????# " #??? | | ????????????????????????"@ " "" " " #??? | | ????????????????????????" """ """ #??? | | ????????????????????????" " " " " #??? | | ????????????????????????# """"" """" " #??? | | ????????????????????????# " "" " """"""""#??? | | ????????????????????????# " " "? ? ? ???? | | ????????????????????????############?#?###???????? | | ?????????????????????????????????????????????????? | | ?????????????????????????????????????????????????? | | ?????????????????????????????????????????????????? | | ?????????????????????????????????????????????????? | | ?????????????????????????????????????????????????? | | ?????????????????????????????????????????????????? | | ?????????????????????????????????????????????????? | | ?????????????????????????????????????????????????? | | ?????????????????????????????????????????????????? | | ?????????????????????????????????????????????????? | | ?????????????????????????????????????????????????? | | ?????????????????????????????????????????????????? | | ?????????????????????????????????????????????????? | | ?????????????????????????????????????????????????? | | ?????????????????????????????????????????????????? | | ?????????????????????????????????????????????????? | | ?????????????????????????????????????????????????? | | ?????????????????????????????????????????????????? | +----------------------------------------------------+ Best States ------------- Heat Dissipation 128 Energy Generation 100 Energy Capacity 2380 Matter Stores 550 Matter Capacity 800 Sight Range 22 Robot Scan Range 16 Terrain Scan Range 20 Terrain Scan Density 10 Jamming Range 16 Power Amplification 70 Armor Coverage 2400 Resistance: KI 30 Resistance: TH 50 Resistance: EM 90 Core Shielding 40 Propulsion Shielding 33 Utility Shielding 66 Weapon Shielding 90 Point Defense Rating 320 Weapon Cycling 25 Phase Shifting 15 Evasion (%) 55 Targeting Accuracy 16 Target Analysis 8 Core Analysis 10 Armor Integrity Analysis 66 Recoil Reduction 6 Kinecelleration 40 Overload Regulation 40 Offensive Hacking 20 Relay Coupler Types 116 Relay Coupler Value 3 Item Schematics ----------------- Hcp. Storage Unit | -10/Materials | Hacked Armor Integrity Analyzer | -9/Materials | Hacked Lrn. Tractor Beam | -8/Materials | Hacked Adv. Armor Integrity Analyzer | -4/Factory | Scanalyzed Imp. Heavy Siege Treads | -4/Factory | Scanalyzed Hrd. Heavy Armor Plating | -4/Factory | Scanalyzed Robot Schematics ------------------ M-13 Machinist | -10/Materials | Hacked O-16 Technician | -9/Materials | Hacked Fabricated ------------ M-13 Machinist | x1 | -7/Factory M-13 Machinist | x1 | -6/Factory Alien Tech Used ----------------- None Achievements -------------- None Challenges ------------ None Game ------ Seed NullDisposableBiocell Manual? 0 Play Time 06:10:54 Cumulative 596.8 hours Start 2021.06.17 @ 18:12:52 End 2021.06.20 @ 17:47:24 Sessions 17 Manual Loads 0 Difficulty Rogue Special Mode None Game No. 360 Rogue 360 Adventurer 0 Explorer 0 Win Type - Total 6 Types 4/0/1/0/1/0/0/0/0 Lore% 88 Gallery% 89 Achievement% 71 Wizard Run 0 Options --------- ASCII 0 Keyboard 0 Movement Mouse Keybinds 1 Fullscreen 2 Font 24/Smallcaps Map View 76x50 Tactical HUD 1 Map Filters NONE Filters NONE Steam 1 RUN: 784870bd-da00-4104-9313-fe7bb3ecd801